[Event "FIDE U16 Olympiad_boards_81-124"]
[Site "Eindhoven, Netherlands"]
[Date "2023.08.13"]
[Round "1.39"]
[White "Zecha, Oscar"]
[Black "Kiwanuka, Ssubi"]
[Result "1-0"]
[TimeControl "45min+10sec"]
[WhiteElo "1867"]
[BlackElo "1324"]

1. e4 {[%clk 00:45:18]} {[%emt 00:00:02]} e5 {[%clk 00:45:17]} {[%emt
00:00:03]} 2. Nf3 {[%clk 00:45:25]} {[%emt 00:00:02]} Nf6 {[%clk 00:45:24]}
{[%emt 00:00:03]} 3. Nxe5 {[%clk 00:45:31]} {[%emt 00:00:04]} d6 {[%clk
00:45:31]} {[%emt 00:00:04]} 4. Nf3 {[%clk 00:45:38]} {[%emt 00:00:03]} Nxe4
{[%clk 00:45:39]} {[%emt 00:00:02]} 5. Nc3 {[%clk 00:45:12]} {[%emt 00:00:36]}
Nxc3 {[%clk 00:45:45]} {[%emt 00:00:04]} 6. dxc3 {[%clk 00:45:20]} {[%emt
00:00:02]} Bg4 {[%clk 00:45:47]} {[%emt 00:00:08]} 7. h3 {[%clk 00:44:56]}
{[%emt 00:00:34]} Bh5 {[%clk 00:45:52]} {[%emt 00:00:04]} 8. Qd5 {[%clk
00:44:44]} {[%emt 00:00:23]} Bg6 {[%clk 00:45:54]} {[%emt 00:00:07]} 9. Qxb7
{[%clk 00:44:15]} {[%emt 00:00:40]} Nd7 {[%clk 00:45:58]} {[%emt 00:00:05]} 10.
Bb5 {[%clk 00:42:37]} {[%emt 00:01:49]} Bf5 {[%clk 00:44:16]} {[%emt 00:01:50]}
11. O-O {[%clk 00:42:07]} {[%emt 00:00:42]} Be7 {[%clk 00:44:20]} {[%emt
00:00:03]} 12. Nd4 {[%clk 00:42:07]} {[%emt 00:00:13]} Be6 {[%clk 00:43:12]}
{[%emt 00:01:18]} 13. Nc6 {[%clk 00:40:38]} {[%emt 00:01:39]} Qc8 {[%clk
00:42:54]} {[%emt 00:00:26]} 14. Qxc8+ {[%clk 00:40:45]} {[%emt 00:00:05]} Rxc8
{[%clk 00:42:12]} {[%emt 00:00:52]} 15. Ba6 {[%clk 00:40:54]} {[%emt 00:00:01]}
Bc4 {[%clk 00:40:46]} {[%emt 00:01:36]} 16. Bxc4 {[%clk 00:40:52]} {[%emt
00:00:12]} Kf8 {[%clk 00:40:52]} {[%emt 00:00:02]} 17. Re1 {[%clk 00:39:35]}
{[%emt 00:01:29]} Bf6 {[%clk 00:40:18]} {[%emt 00:00:40]} 18. Bf4 {[%clk
00:38:46]} {[%emt 00:01:03]} Nb6 {[%clk 00:39:05]} {[%emt 00:01:21]} 19. Bb5
{[%clk 00:38:14]} {[%emt 00:00:44]} Nd5 {[%clk 00:37:53]} {[%emt 00:01:21]} 20.
Bd2 {[%clk 00:37:43]} {[%emt 00:00:42]} Ra8 {[%clk 00:37:21]} {[%emt 00:00:40]}
21. Nxa7 {[%clk 00:35:45]} {[%emt 00:02:10]} Rxa7 {[%clk 00:36:36]} {[%emt
00:00:54]} 22. Re8# {[%clk 00:35:51]} {[%emt 00:00:04]} 1-0

[Event "FIDE U16 Olympiad_boards_81-124"]
[Site "Eindhoven, Netherlands"]
[Date "2023.08.13"]
[Round "1.40"]
[White "Hailey, Nio Mitchelle"]
[Black "Westerhof, Fleur"]
[Result "0-1"]
[TimeControl "45min+10sec"]
[WhiteElo "1052"]
[BlackElo "1793"]

1. d4 {[%clk 00:45:15]} {[%emt 00:00:05]} d5 {[%clk 00:45:16]} {[%emt
00:00:04]} 2. Nf3 {[%clk 00:45:17]} {[%emt 00:00:07]} Nf6 {[%clk 00:45:16]}
{[%emt 00:00:11]} 3. Bf4 {[%clk 00:45:12]} {[%emt 00:00:15]} e6 {[%clk
00:44:48]} {[%emt 00:00:37]} 4. e3 {[%clk 00:44:37]} {[%emt 00:00:46]} Bd6
{[%clk 00:43:56]} {[%emt 00:01:02]} 5. Bxd6 {[%clk 00:43:30]} {[%emt 00:01:18]}
Qxd6 {[%clk 00:43:40]} {[%emt 00:00:25]} 6. Nbd2 {[%clk 00:43:12]} {[%emt
00:00:28]} O-O {[%clk 00:42:31]} {[%emt 00:01:19]} 7. Be2 {[%clk 00:41:47]}
{[%emt 00:01:34]} c5 {[%clk 00:41:49]} {[%emt 00:00:53]} 8. c3 {[%clk
00:40:43]} {[%emt 00:01:13]} Nc6 {[%clk 00:40:27]} {[%emt 00:01:32]} 9. O-O
{[%clk 00:39:44]} {[%emt 00:01:09]} a6 {[%clk 00:37:23]} {[%emt 00:03:15]} 10.
Re1 {[%clk 00:34:39]} {[%emt 00:05:15]} e5 {[%clk 00:35:04]} {[%emt 00:02:29]}
11. dxe5 {[%clk 00:32:07]} {[%emt 00:02:42]} Nxe5 {[%clk 00:35:00]} {[%emt
00:00:15]} 12. Nxe5 {[%clk 00:32:10]} {[%emt 00:00:06]} Qxe5 {[%clk 00:35:05]}
{[%emt 00:00:04]} 13. Nf3 {[%clk 00:32:16]} {[%emt 00:00:05]} Qe7 {[%clk
00:32:44]} {[%emt 00:02:31]} 14. c4 {[%clk 00:28:07]} {[%emt 00:04:19]} dxc4
{[%clk 00:32:18]} {[%emt 00:00:35]} 15. Bxc4 {[%clk 00:28:08]} {[%emt
00:00:10]} b5 {[%clk 00:31:40]} {[%emt 00:00:48]} 16. Be2 {[%clk 00:26:54]}
{[%emt 00:01:24]} Bf5 {[%clk 00:28:51]} {[%emt 00:02:59]} 17. Nh4 {[%clk
00:24:45]} {[%emt 00:02:18]} Be4 {[%clk 00:28:04]} {[%emt 00:00:57]} 18. Bf3
{[%clk 00:24:32]} {[%emt 00:00:23]} Rad8 {[%clk 00:25:13]} {[%emt 00:03:02]} 19.
Qc1 {[%clk 00:22:42]} {[%emt 00:01:59]} Nd5 {[%clk 00:22:43]} {[%emt 00:02:41]}
20. Bxe4 {[%clk 00:19:56]} {[%emt 00:02:56]} Qxe4 {[%clk 00:22:22]} {[%emt
00:00:32]} 21. Nf3 {[%clk 00:19:45]} {[%emt 00:00:20]} Nb4 {[%clk 00:21:49]}
{[%emt 00:00:43]} 22. Rd1 {[%clk 00:17:45]} {[%emt 00:02:09]} Nd3 {[%clk
00:19:28]} {[%emt 00:02:31]} 23. Qc2 {[%clk 00:16:21]} {[%emt 00:01:33]} c4
{[%clk 00:16:39]} {[%emt 00:03:00]} 24. b3 {[%clk 00:14:50]} {[%emt 00:01:41]}
Rc8 {[%clk 00:13:50]} {[%emt 00:03:01]} 25. Nd2 {[%clk 00:12:41]} {[%emt
00:02:17]} Qf5 {[%clk 00:12:31]} {[%emt 00:01:28]} 26. Rf1 {[%clk 00:11:17]}
{[%emt 00:01:37]} Qg6 {[%clk 00:09:24]} {[%emt 00:03:17]} 27. bxc4 {[%clk
00:10:10]} {[%emt 00:01:16]} Rfd8 {[%clk 00:07:32]} {[%emt 00:02:02]} 28. Qb3
{[%clk 00:08:46]} {[%emt 00:01:33]} Nc5 {[%clk 00:06:50]} {[%emt 00:00:53]} 29.
Qb4 {[%clk 00:08:48]} {[%emt 00:00:08]} Nd3 {[%clk 00:06:31]} {[%emt 00:00:28]}
30. Qc3 {[%clk 00:07:54]} {[%emt 00:01:00]} bxc4 {[%clk 00:05:53]} {[%emt
00:00:53]} 31. Nxc4 {[%clk 00:07:40]} {[%emt 00:00:24]} Qe6 {[%clk 00:05:32]}
{[%emt 00:00:30]} 32. Qb3 {[%clk 00:05:36]} {[%emt 00:02:15]} Qxc4 {[%clk
00:05:31]} {[%emt 00:00:11]} 33. Qxc4 {[%clk 00:05:19]} {[%emt 00:00:26]} Rxc4
{[%clk 00:05:40]} {[%emt 00:00:02]} 34. Rab1 {[%clk 00:05:13]} {[%emt
00:00:16]} Rdc8 {[%clk 00:05:26]} {[%emt 00:00:24]} 35. Rfd1 {[%clk 00:04:33]}
{[%emt 00:00:48]} Rc1 {[%clk 00:05:25]} {[%emt 00:00:13]} 36. Rbxc1 {[%clk
00:04:28]} {[%emt 00:00:15]} Rxc1 {[%clk 00:05:34]} {[%emt 00:00:02]} 37. Rxc1
{[%clk 00:04:34]} {[%emt 00:00:03]} Nxc1 {[%clk 00:05:42]} {[%emt 00:00:02]} 38.
Kf1 {[%clk 00:04:43]} {[%emt 00:00:01]} Nxa2 {[%clk 00:05:51]} {[%emt
00:00:02]} 39. Ke2 {[%clk 00:04:52]} {[%emt 00:00:01]} Nb4 {[%clk 00:05:46]}
{[%emt 00:00:15]} 40. Kd2 {[%clk 00:04:58]} {[%emt 00:00:03]} Kf8 {[%clk
00:05:53]} {[%emt 00:00:03]} 41. Kc3 {[%clk 00:05:05]} {[%emt 00:00:02]} a5
{[%clk 00:05:52]} {[%emt 00:00:12]} 42. Kb3 {[%clk 00:05:11]} {[%emt 00:00:04]}
Ke7 {[%clk 00:05:53]} {[%emt 00:00:10]} 43. Ka4 {[%clk 00:05:16]} {[%emt
00:00:05]} Nd3 {[%clk 00:06:01]} {[%emt 00:00:01]} 44. f4 {[%clk 00:05:21]}
{[%emt 00:00:06]} Ne1 {[%clk 00:06:06]} {[%emt 00:00:05]} 45. g3 {[%clk
00:05:26]} {[%emt 00:00:05]} Ng2 {[%clk 00:05:53]} {[%emt 00:00:23]} 46. e4
{[%clk 00:05:30]} {[%emt 00:00:05]} Ne3 {[%clk 00:06:01]} {[%emt 00:00:02]} 47.
Kxa5 {[%clk 00:05:28]} {[%emt 00:00:13]} Nf1 {[%clk 00:06:09]} {[%emt
00:00:01]} 48. g4 {[%clk 00:05:07]} {[%emt 00:00:31]} Nxh2 {[%clk 00:06:17]}
{[%emt 00:00:02]} 49. g5 {[%clk 00:05:15]} {[%emt 00:00:01]} Nf1 {[%clk
00:05:56]} {[%emt 00:00:32]} 50. Kb5 {[%clk 00:05:10]} {[%emt 00:00:15]} Ng3
{[%clk 00:05:54]} {[%emt 00:00:12]} 51. e5 {[%clk 00:05:10]} {[%emt 00:00:10]}
Ne2 {[%clk 00:05:55]} {[%emt 00:00:09]} 52. f5 {[%clk 00:05:07]} {[%emt
00:00:13]} Nd4+ {[%clk 00:06:04]} {[%emt 00:00:02]} 53. Kc5 {[%clk 00:05:11]}
{[%emt 00:00:05]} Nxf5 {[%clk 00:06:12]} {[%emt 00:00:03]} 54. Kd5 {[%clk
00:05:17]} {[%emt 00:00:03]} Ne3+ {[%clk 00:06:18]} {[%emt 00:00:05]} 55. Ke4
{[%clk 00:05:21]} {[%emt 00:00:05]} Ng2 {[%clk 00:06:20]} {[%emt 00:00:08]} 56.
Kf5 {[%clk 00:05:22]} {[%emt 00:00:09]} g6+ {[%clk 00:06:23]} {[%emt 00:00:07]}
57. Kg4 {[%clk 00:05:25]} {[%emt 00:00:06]} Ke6 {[%clk 00:06:22]} {[%emt
00:00:12]} 58. Kf3 {[%clk 00:05:31]} {[%emt 00:00:04]} Kxe5 {[%clk 00:06:18]}
{[%emt 00:00:14]} 59. Kxg2 {[%clk 00:05:37]} {[%emt 00:00:04]} Kf5 {[%clk
00:06:27]} {[%emt 00:00:02]} 60. Kg3 {[%clk 00:05:45]} {[%emt 00:00:01]} Kxg5
{[%clk 00:06:36]} {[%emt 00:00:02]} 61. Kf3 {[%clk 00:05:51]} {[%emt 00:00:04]}
h5 {[%clk 00:06:44]} {[%emt 00:00:01]} 62. Kg3 {[%clk 00:05:56]} {[%emt
00:00:06]} f5 {[%clk 00:06:52]} {[%emt 00:00:02]} 63. Kf3 {[%clk 00:06:00]}
{[%emt 00:00:05]} h4 {[%clk 00:07:00]} {[%emt 00:00:02]} 64. Kg2 {[%clk
00:06:07]} {[%emt 00:00:03]} Kg4 {[%clk 00:07:08]} {[%emt 00:00:02]} 65. Kh2
{[%clk 00:06:11]} {[%emt 00:00:05]} f4 {[%clk 00:07:16]} {[%emt 00:00:03]} 66.
Kg2 {[%clk 00:06:18]} {[%emt 00:00:03]} f3+ {[%clk 00:07:23]} {[%emt 00:00:03]}
67. Kf2 {[%clk 00:06:23]} {[%emt 00:00:04]} h3 {[%clk 00:07:32]} {[%emt
00:00:02]} 68. Kg1 {[%clk 00:06:24]} {[%emt 00:00:08]} Kg3 {[%clk 00:07:27]}
{[%emt 00:00:17]} 69. Kh1 {[%clk 00:06:22]} {[%emt 00:00:11]} g5 {[%clk
00:07:35]} {[%emt 00:00:02]} 70. Kg1 {[%clk 00:06:25]} {[%emt 00:00:06]} f2+
{[%clk 00:07:44]} {[%emt 00:00:02]} 71. Kf1 {[%clk 00:06:24]} {[%emt 00:00:11]}
h2 {[%clk 00:07:51]} {[%emt 00:00:03]} 72. Ke2 {[%clk 00:06:24]} {[%emt
00:00:10]} h1=Q {[%clk 00:07:56]} {[%emt 00:00:05]} 73. Ke3 {[%clk 00:06:26]}
{[%emt 00:00:08]} Qe1+ {[%clk 00:08:04]} {[%emt 00:00:03]} 74. Kd3 {[%clk
00:06:28]} {[%emt 00:00:07]} f1=R {[%clk 00:08:06]} {[%emt 00:00:07]} 75. Kd4
{[%clk 00:06:30]} {[%emt 00:00:07]} Rf4+ {[%clk 00:08:14]} {[%emt 00:00:03]} 76.
Kd3 {[%clk 00:06:33]} {[%emt 00:00:07]} Qe4+ {[%clk 00:08:22]} {[%emt
00:00:02]} 77. Kc3 {[%clk 00:06:36]} {[%emt 00:00:08]} Rf3+ {[%clk 00:08:31]}
{[%emt 00:00:02]} 78. Kd2 {[%clk 00:06:42]} {[%emt 00:00:03]} Qd3+ {[%clk
00:08:39]} {[%emt 00:00:01]} 79. Ke1 {[%clk 00:06:45]} {[%emt 00:00:08]} Rf1#
{[%clk 00:08:46]} {[%emt 00:00:02]} 0-1

[Event "FIDE U16 Olympiad_boards_81-124"]
[Site "Eindhoven, Netherlands"]
[Date "2023.08.13"]
[Round "1.41"]
[White "Sinton, Luc"]
[Black "Elias, David"]
[Result "0-1"]
[TimeControl "45min+10sec"]
[WhiteElo "1093"]
[BlackElo "1884"]

1. d4 {[%clk 00:45:18]} {[%emt 00:00:01]} Nf6 {[%clk 00:45:15]} {[%emt
00:00:05]} 2. Bf4 {[%clk 00:45:19]} {[%emt 00:00:09]} e6 {[%clk 00:44:47]}
{[%emt 00:00:40]} 3. Nf3 {[%clk 00:45:03]} {[%emt 00:00:24]} c5 {[%clk
00:44:32]} {[%emt 00:00:25]} 4. e3 {[%clk 00:44:35]} {[%emt 00:00:38]} d5
{[%clk 00:43:49]} {[%emt 00:00:53]} 5. Bb5+ {[%clk 00:43:13]} {[%emt 00:01:32]}
Bd7 {[%clk 00:43:03]} {[%emt 00:00:56]} 6. Bxd7+ {[%clk 00:42:48]} {[%emt
00:00:35]} Qxd7 {[%clk 00:41:04]} {[%emt 00:02:09]} 7. Nc3 {[%clk 00:41:43]}
{[%emt 00:01:14]} Nc6 {[%clk 00:39:51]} {[%emt 00:01:24]} 8. Nb5 {[%clk
00:39:19]} {[%emt 00:02:34]} Rc8 {[%clk 00:39:12]} {[%emt 00:00:49]} 9. Ne5
{[%clk 00:38:04]} {[%emt 00:01:25]} Nxe5 {[%clk 00:38:57]} {[%emt 00:00:26]} 10.
dxe5 {[%clk 00:37:31]} {[%emt 00:00:42]} Qxb5 {[%clk 00:38:43]} {[%emt
00:00:24]} 11. exf6 {[%clk 00:37:32]} {[%emt 00:00:09]} gxf6 {[%clk 00:38:28]}
{[%emt 00:00:25]} 12. b3 {[%clk 00:34:57]} {[%emt 00:02:45]} Rg8 {[%clk
00:36:14]} {[%emt 00:02:25]} 13. Qd3 {[%clk 00:31:03]} {[%emt 00:04:03]} Qxd3
{[%clk 00:35:39]} {[%emt 00:00:45]} 14. cxd3 {[%clk 00:31:06]} {[%emt
00:00:07]} Kd7 {[%clk 00:34:15]} {[%emt 00:01:35]} 15. Rc1 {[%clk 00:29:52]}
{[%emt 00:01:23]} h5 {[%clk 00:33:43]} {[%emt 00:00:42]} 16. e4 {[%clk
00:28:59]} {[%emt 00:01:03]} e5 {[%clk 00:31:44]} {[%emt 00:02:09]} 17. Bg3
{[%clk 00:28:13]} {[%emt 00:00:56]} Ke6 {[%clk 00:30:33]} {[%emt 00:01:21]} 18.
O-O {[%clk 00:25:40]} {[%emt 00:02:44]} Bh6 {[%clk 00:28:57]} {[%emt 00:01:46]}
19. exd5+ {[%clk 00:21:51]} {[%emt 00:03:58]} Kxd5 {[%clk 00:28:50]} {[%emt
00:00:16]} 20. Rc4 {[%clk 00:20:30]} {[%emt 00:01:31]} Rg4 {[%clk 00:25:24]}
{[%emt 00:03:36]} 21. Rd1 {[%clk 00:19:30]} {[%emt 00:01:11]} Rd4 {[%clk
00:22:55]} {[%emt 00:02:40]} 22. f3 {[%clk 00:18:23]} {[%emt 00:01:16]} b5
{[%clk 00:22:29]} {[%emt 00:00:36]} 23. Rxd4+ {[%clk 00:18:03]} {[%emt
00:00:30]} cxd4 {[%clk 00:20:10]} {[%emt 00:02:30]} 24. Bh4 {[%clk 00:17:26]}
{[%emt 00:00:46]} Rc2 {[%clk 00:19:25]} {[%emt 00:00:56]} 25. Bxf6 {[%clk
00:14:04]} {[%emt 00:03:31]} Rxa2 {[%clk 00:19:26]} {[%emt 00:00:09]} 26. Rc1
{[%clk 00:14:10]} {[%emt 00:00:03]} Bxc1 {[%clk 00:19:32]} {[%emt 00:00:05]}
0-1